fUSD/lending_fUSD_20260213
["ID","MTS","AMOUNT","RATE_DAILY","PERIOD"]
[405339194,1771012243420,-1999.0,0.00038356,120]
[405339195,1771012243430,-1343.12,0.00038356,30]
[405339196,1771012243440,-152.0,0.00038479,10]
[405339197,1771012243450,-400.73548,0.00038488,30]
[405339198,1771012243460,-390.0,0.0003857,2]
[405339199,1771012243470,-384.0,0.0003857,2]
[405339200,1771012243491,-384.0,0.0003857,2]
[405339201,1771012243501,-384.0,0.0003857,2]
[405339202,1771012243511,-384.0,0.0003857,2]
[405339203,1771012243520,-476.65442763,0.0003857,2]
[405339204,1771012243530,-177.22,0.000386,14]
[405339205,1771012243540,-414.23,0.000386,30]
[405339206,1771012243550,-400.73548,0.00038688,30]
[405339207,1771012243559,-2115.90201448,0.00038694,2]
[405339208,1771012243569,-750.2,0.000387,14]
[405339209,1771012243578,-1327.05158,0.00039,120]
[405339210,1771012243588,-160.0,0.00039,30]
[405339211,1771012243598,-173.38608461,0.00039,30]
[405339212,1771012243608,-1999.0,0.00039041,120]
[405339213,1771012243617,-993.77,0.00039049,2]
[405339214,1771012243627,-400.73548,0.00039088,30]
[405339215,1771012243637,-4083.78760475,0.00039188,2]
[405339216,1771012243646,-151.0,0.00039197,14]
[405339217,1771012243656,-1327.05158,0.000392,120]
[405339218,1771012243666,-171639.5,0.000392,14]
[405339219,1771012243676,-400.73548,0.00039288,30]
[405339220,1771012243686,-10317.95139985,0.000393,30]
[405339221,1771012243696,-1827.83673671,0.000393,2]
[405339222,1771012243705,-1327.05158,0.000394,120]
[405339223,1771012243715,-25000.0,0.000394,15]
[405339224,1771012243724,-649209.13213287,0.000394,7]
[405339225,1771012243734,-25000.0,0.000394,15]
[405339226,1771012243742,-400.73548,0.00039488,30]
[405339227,1771012243750,-1327.05158,0.000396,120]
[405339228,1771012243759,-2000.0,0.000396,2]
[405339229,1771012243767,-152.0,0.00039608,11]
[405339230,1771012243775,-166.66,0.00039609,2]
[405339231,1771012243784,-1558.68796301,0.00039677,2]
[405339232,1771012243792,-300.70116688,0.00039677,2]
[405339233,1771012243801,-300.0,0.00039677,2]
[405339234,1771012243809,-300.51467445,0.00039677,2]
[405339235,1771012243817,-575.9163549,0.00039677,2]
[405339236,1771012243825,-1558.68796301,0.00039677,2]
[405339237,1771012243833,-371.94213864,0.00039677,2]
[405339238,1771012243842,-301.02860324,0.00039677,2]
[405339239,1771012243852,-300.0,0.00039677,2]
[405339240,1771012243861,-300.52729027,0.00039677,2]
[405339241,1771012243871,-300.0,0.00039677,2]
[405339242,1771012243880,-300.0,0.00039677,2]
[405339243,1771012243889,-300.00000001,0.00039677,2]
[405339244,1771012243899,-301.20809281,0.00039677,2]
[405339245,1771012243908,-572.79598072,0.00039677,2]
[405339246,1771012243917,-553.40092275,0.00039677,2]
[405339247,1771012243927,-1083.69896901,0.00039677,2]
[405339248,1771012243936,-1558.68796301,0.00039677,2]
[405339249,1771012243946,-499.96736827,0.00039677,2]
[405339250,1771012243955,-1558.68796301,0.00039677,2]
[405339251,1771012243964,-400.73548,0.00039688,30]
[405339252,1771012243974,-45999.999999,0.000397,2]
[405339253,1771012243983,-1999.0,0.00039726,120]
[405339254,1771012243992,-80464.15578604,0.00039781,7]
[405339255,1771012244000,-5800.0,0.00039791,14]
[405339256,1771012244008,-5800.0,0.000398,14]
[405339257,1771012244016,-1327.05158,0.000398,120]
[405339258,1771012244024,-5800.0,0.00039808,14]
[405339259,1771012244034,-5800.0,0.00039817,14]
[405339260,1771012244042,-5800.0,0.00039825,14]
[405339261,1771012244051,-5800.0,0.00039834,14]
[405339262,1771012244059,-5800.0,0.00039842,14]
[405339263,1771012244067,-400.73548,0.00039888,30]
[405339264,1771012244076,-1000.0,0.00039929,14]
[405339265,1771012244085,-300.11896325,0.0004,30]
[405339266,1771012244094,-291.54305096,0.0004,45]
[405339267,1771012244102,-152.0,0.0004,120]
[405339268,1771012244110,-154.0,0.0004,120]
[405339269,1771012244118,-750.2,0.0004,14]
[405339270,1771012244126,-19603.15009223,0.0004,120]
[405339271,1771012244985,-135.87357718,0.00013186,2]
[405339272,1771012244999,-722.8955016,0.00013186,2]
[405339273,1771012245206,-1145.538314,0.00013186,2]
[405339274,1771012245425,-12723.70647297,0.00013186,2]
[405339275,1771012245786,-785.54484533,0.00013186,2]
[405339428,1771013431582,-481.0,0.00012899,2]
[405339429,1771013431592,-256.0,0.00012899,2]
[405339430,1771013431602,-828.935,0.000129,2]
[405339431,1771013431611,-45.88009603,0.000129,2]
[405339432,1771013431640,-2073.2599778,0.000129,2]
[405339433,1771013431652,-2224.66186752,0.000129,2]
[405339434,1771013431664,-542.62433888,0.000129,2]
[405339435,1771013431745,-66.58691977,0.000129,2]
[405339436,1771013431754,-292.63958719,0.000129,2]
[405339437,1771013431766,-523.0,0.000129,2]
[405339455,1771013437640,-576.8091745,0.000129,2]
[405339457,1771013437651,-424.06072804,0.000129,2]
[405339458,1771013437694,-683.49051027,0.000129,2]
[405339459,1771013437704,-150.0,0.00012984,2]
[405339460,1771013437718,-13465.44036432,0.00012985,2]
[405339461,1771013437731,-18520.31911356,0.00012985,2]
[405339462,1771013437740,-1058.715,0.00013118,2]
[405339463,1771013437750,-1010445.6586,0.0001317,2]
[405339464,1771013437760,-16844.97,0.0001327,2]
[405339465,1771013437771,-1852.42,0.0001327,2]
[405339466,1771013437780,-1614.55677779,0.00013325,2]
[405339467,1771013437790,-3240.0,0.00013425,2]
[405339468,1771013437799,-1000.0,0.00013486,2]
[405339469,1771013437808,-32832.125,0.00013486,2]
[405339470,1771013437818,-1300.5768,0.00013486,2]
[405339471,1771013437831,-150.99,0.00013486,2]
[405339472,1771013437842,-299.99,0.00013486,2]
[405339473,1771013437852,-9999.99,0.00013486,2]
[405339474,1771013437862,-500.0,0.00013698,2]
[405339475,1771013437872,-366.198,0.00013698,2]
[405339476,1771013437885,-500.0,0.00013698,2]
[405339477,1771013437895,-500.0,0.00013698,2]
[405339478,1771013437907,-500.0,0.00013698,2]
[405339480,1771013437917,-500.0,0.00013698,2]
[405339482,1771013437928,-500.0,0.00013698,2]
[405339484,1771013437939,-529.97276172,0.00013698,2]
[405339485,1771013437949,-500.0,0.00013698,2]
[405339487,1771013437962,-500.0,0.00013698,2]
[405339489,1771013437973,-500.0,0.00013698,2]
[405339491,1771013437984,-500.0,0.00013698,2]
[405339493,1771013437995,-661.47,0.00013698,2]
[405339496,1771013438008,-661.47,0.00013698,2]
[405339498,1771013438019,-661.47,0.00013698,2]
[405339500,1771013438029,-661.47,0.00013698,2]
[405339502,1771013438040,-500.0,0.00013698,2]
[405339504,1771013438051,-500.0,0.00013698,2]
[405339506,1771013438062,-500.0,0.00013698,2]
[405339508,1771013438073,-500.0,0.00013698,2]
[405339510,1771013438084,-500.0,0.00013698,2]
[405339512,1771013438094,-500.0,0.00013698,2]
[405339514,1771013438106,-500.0,0.00013698,2]
[405339516,1771013438117,-500.0,0.00013698,2]
[405339518,1771013438128,-500.0,0.00013698,2]
[405339520,1771013438138,-500.0,0.00013698,2]
[405339522,1771013438148,-504.54469483,0.00013698,2]
[405339524,1771013438159,-500.0,0.00013698,2]
[405339526,1771013438170,-500.0,0.00013698,2]
[405339528,1771013438179,-500.0,0.00013698,2]
[405339530,1771013438189,-500.0,0.00013698,2]
[405339532,1771013438200,-507.92586817,0.00013698,2]
[405339533,1771013438211,-500.0,0.00013698,2]
[405339535,1771013438223,-500.0,0.00013698,2]
[405339538,1771013438233,-500.0,0.00013698,2]
[405339540,1771013438244,-500.0,0.00013698,2]
[405339542,1771013438261,-483651.57783445,0.00013777,2]
[405339544,1771013438275,-3000.38753315,0.00013899,2]
[405339546,1771013438286,-1094.17,0.00013999,2]
[405339548,1771013438297,-500.0,0.00014054,2]
[405339550,1771013438313,-255.0,0.00014088,2]
[405339551,1771013438324,-5000.0,0.0001419,2]
[405339553,1771013438335,-500.0,0.0001419,2]
[405339555,1771013438346,-500.0,0.0001419,2]
[405339558,1771013438365,-500.0,0.0001419,2]
[405339559,1771013438375,-500.0,0.0001419,2]
[405339561,1771013438385,-201.71852584,0.0001419,2]
[405339563,1771013438397,-195.0,0.0001419,2]
[405339565,1771013438419,-600.0,0.0001419,2]
[405339568,1771013438430,-600.0,0.0001419,2]
[405339569,1771013438439,-600.0,0.0001419,2]
[405339572,1771013438454,-735.83962123,0.0001419,2]
[405339573,1771013438473,-300.89888258,0.0001419,2]
[405339576,1771013438484,-1094.17,0.00014315,2]
[405339577,1771013438496,-1094.17,0.00014631,2]
[405339580,1771013438512,-1533.78901469,0.0001485,2]
[405339582,1771013438528,-160.0,0.00014889,2]
[405339584,1771013438539,-173.38608461,0.00014889,2]
[405339586,1771013438551,-1094.17,0.00014947,2]
[405339587,1771013438566,-250.0,0.00015,2]
[405339590,1771013438582,-456.34271445,0.00015165,2]
[405339591,1771013438594,-1094.17,0.00015263,2]
[405339593,1771013438608,-433.0,0.00015282,2]
[405339616,1771013438836,-873.41018519,0.00015515,2]
[405339619,1771013438848,-1094.17,0.00015578,2]
[405339621,1771013438857,-2017.58,0.00015705,2]
[405339623,1771013438866,-1094.17,0.00015894,2]
[405339624,1771013438876,-500.0,0.0001599,2]
[405339627,1771013438886,-2640.45,0.00015999,2]
[405339629,1771013438896,-13465.44036426,0.00016021,2]
[405339630,1771013438905,-18520.31911355,0.00016021,2]
[405339632,1771013438916,-356.2,0.00016185,2]
[405339635,1771013438926,-768.72310663,0.000162,2]
[405339636,1771013438936,-1094.17,0.0001621,2]
[405339637,1771013438947,-1094.17,0.00016526,2]
[405339639,1771013438958,-150.0,0.0001662,2]
[405339641,1771013438967,-1094.17,0.00016842,2]
[405339643,1771013438979,-356.2,0.00017084,2]
[405339645,1771013438990,-166.68,0.00017149,2]
[405339647,1771013439000,-1094.17,0.00017157,2]
[405339649,1771013439010,-216.0,0.00017358,2]
[405339651,1771013439020,-1094.17,0.00017473,2]
[405339653,1771013439031,-261.0,0.00017547,2]
[405339655,1771013439043,-166.83,0.00017632,2]
[405339657,1771013439052,-332.0,0.00017697,2]
[405339659,1771013439064,-481.89542729,0.00017742,2]
[405339661,1771013439077,-481.89542728,0.00017742,2]
[405339663,1771013439088,-1094.17,0.00017789,2]
[405339665,1771013439098,-800.0,0.00017808,2]
[405339667,1771013439108,-356.2,0.00017983,2]
[405339669,1771013439119,-1094.17,0.00018105,2]
[405339671,1771013439130,-200.18551342,0.00018128,2]
[405339673,1771013439142,-155.34959577,0.00018146,2]
[405339675,1771013439153,-3000.38753315,0.00018161,2]
[405339677,1771013439163,-1094.17,0.0001842,2]
[405339679,1771013439175,-16844.97,0.00018578,2]
[405339681,1771013439184,-1094.17,0.00018736,2]
[405339683,1771013439195,-356.2,0.00018882,2]
[405339685,1771013439206,-1632.98,0.00018942,2]
[405339687,1771013439217,-522.0,0.00019,2]
[405339689,1771013439231,-500.0,0.00019051,2]
[405339691,1771013439243,-500.0,0.00019051,2]
[405339693,1771013439253,-661.47,0.00019051,2]
[405339695,1771013439264,-500.0,0.00019051,2]
[405339697,1771013439275,-500.0,0.00019051,2]
[405339699,1771013439285,-500.0,0.00019051,2]
[405339701,1771013439296,-500.0,0.00019051,2]
[405339703,1771013439307,-1094.17,0.00019052,2]
[405339705,1771013439318,-13465.44036426,0.00019057,2]
[405339707,1771013439329,-18520.31911355,0.00019057,2]
[405339709,1771013439340,-1094.17,0.00019368,2]
[405339711,1771013439350,-1094.17,0.00019684,2]
[405339713,1771013439361,-356.2,0.00019781,2]
[405339715,1771013439375,-166.68,0.0001998,2]
[405339717,1771013439386,-1094.17,0.00019999,2]
[405339720,1771013439397,-575.78,0.00020065,2]
[405339722,1771013439408,-13554.29,0.0002024,2]
[405339723,1771013439418,-356.2,0.0002068,2]
[405339726,1771013439427,-1614.55677776,0.00020928,2]
[405339728,1771013439439,-575.78,0.00021435,2]
[405339730,1771013439450,-356.2,0.0002158,2]
[405339732,1771013439461,-5000.0,0.00021918,2]
[405339734,1771013439472,-993.77,0.00022039,2]
[405339736,1771013439481,-1000.0,0.00022039,2]
[405339737,1771013439492,-247.81,0.00022039,2]
[405339740,1771013439503,-150.0,0.00022039,2]
[405339742,1771013439513,-13465.44036426,0.00022093,2]
[405339745,1771013439523,-18520.31911355,0.00022093,2]
[405339746,1771013439533,-1660.18,0.00022236,2]
[405339748,1771013439544,-3000.38753315,0.00022424,2]
[405339750,1771013439553,-356.2,0.00022479,2]
[405339753,1771013439569,-155.34959577,0.00022682,2]
[405339755,1771013439580,-160.0,0.00023,2]
[405339757,1771013439590,-993.77,0.00023141,2]
[405339758,1771013439601,-356.2,0.00023378,2]
[405339760,1771013439612,-993.77,0.00024243,2]
[405339763,1771013439622,-356.2,0.00024277,2]
[405339766,1771013439634,-522.0,0.00024545,7]
[405339769,1771013439646,-150.0,0.00024658,2]
[405339771,1771013439662,-1000.0,0.00024794,2]
[405339773,1771013439675,-13465.44036426,0.00025129,2]
[405339775,1771013439684,-18520.31911355,0.00025129,2]
[405339777,1771013439695,-993.77,0.00025345,2]
[405339779,1771013439707,-500.0,0.00025452,2]
[405339780,1771013439717,-215.0,0.00025808,2]
[405339781,1771013439726,-150.0,0.0002589,2]
[405339782,1771013439735,-993.77,0.00026447,2]
[405339783,1771013439748,-3000.38753315,0.00026686,2]
[405339784,1771013439758,-150.0,0.00027185,2]
[405339785,1771013439769,-155.34959577,0.00027219,2]
[405339786,1771013439779,-500.0,0.00027397,20]
[405339787,1771013439790,-1000.0,0.00027549,2]
[405339788,1771013439800,-251.0,0.00027582,2]
[405339789,1771013439811,-1827.83673672,0.00028065,2]
[405339790,1771013439821,-13465.44036426,0.00028166,2]
[405339791,1771013439834,-18520.31911355,0.00028166,2]
[405339793,1771013439843,-150.0,0.00028404,2]
[405339794,1771013439854,-1614.55677776,0.0002853,2]
[405339795,1771013439865,-150.0,0.00028544,2]
[405339796,1771013439875,-109581.18,0.00029513,2]
[405339797,1771013439884,-182.92,0.00029518,2]
[405339798,1771013439895,-1813.63029816,0.00029599,2]
[405339799,1771013439904,-194.43,0.000296,7]
[405339800,1771013439914,-500.0,0.00029699,120]
[405339801,1771013439921,-500.0,0.00029699,120]
[405339802,1771013439929,-661.47,0.00029699,2]
[405339803,1771013439936,-150.0,0.00029699,20]
[405339804,1771013439943,-648.32121275,0.00029699,120]
[405339805,1771013439949,-500.0,0.00029699,120]
[405339806,1771013439956,-500.0,0.00029699,120]
[405339807,1771013439965,-500.0,0.00029699,18]
[405339808,1771013439975,-150.0,0.00029971,2]
[405339809,1771013439984,-522.0,0.00030091,12]
[405339810,1771013439994,-1000.0,0.00030304,2]
[405339811,1771013440003,-500.0,0.00030445,2]
[405339812,1771013440012,-500.0,0.00030445,2]
[405339813,1771013440021,-500.0,0.00030445,2]
[405339814,1771013440031,-500.0,0.00030445,2]
[405339815,1771013440040,-500.0,0.00030445,2]
[405339816,1771013440050,-500.0,0.00030445,2]
[405339817,1771013440059,-152.0,0.00030634,3]
[405339818,1771013440069,-3000.38753315,0.00030948,2]
[405339819,1771013440078,-13465.44036426,0.00031202,2]
[405339820,1771013440087,-18520.31911355,0.00031202,2]
[405339821,1771013440099,-150.0,0.0003147,2]
[405339822,1771013440108,-206.17,0.00031735,2]
[405339823,1771013440117,-513.0,0.00031753,2]
[405339824,1771013440127,-152.0,0.00031819,4]
[405339825,1771013440136,-194.43,0.000319,7]
[405339826,1771013440145,-1813.63029813,0.00031997,2]
[405339827,1771013440154,-357.94842784,0.00032391,14]
[405339829,1771013440164,-10606.69,0.00032833,2]
[405339830,1771013440173,-675.18,0.000329,14]
[405339831,1771013440182,-283.8,0.000329,14]
[405339832,1771013440192,-137311.6,0.000329,14]
[405339833,1771013440201,-152.0,0.00033004,5]
[405339834,1771013440211,-150.0,0.00033043,2]
[405339835,1771013440220,-1000.0,0.00033059,2]
[405339836,1771013440229,-201.26885767,0.00033174,2]
[405339837,1771013440239,-150.0,0.00033185,2]
[405339838,1771013440248,-150.0,0.00033185,2]
[405339839,1771013440257,-150.0,0.00033185,2]
[405339840,1771013440268,-617.0,0.00033185,2]
[405339842,1771013440277,-1337.0,0.00033185,2]
[405339843,1771013440287,-3488.0,0.00033185,2]
[405339844,1771013440296,-1288.0,0.00033185,2]
[405339845,1771013440305,-150.0,0.00033185,2]
[405339846,1771013440315,-1273.0,0.00033185,2]
[405339847,1771013440324,-2450.0,0.00033185,2]
[405339848,1771013440333,-5968.0,0.00033185,2]
[405339849,1771013440342,-737.0,0.0003363,30]
[405339850,1771013440352,-152.0,0.0003419,6]
[405339851,1771013440361,-13465.44036426,0.00034238,2]
[405339852,1771013440371,-18520.31911355,0.00034238,2]
[405339853,1771013440380,-1813.63029813,0.00034396,2]
[405339854,1771013440389,-150.0,0.00034696,2]
[405339855,1771013440399,-182.92,0.00034759,2]
[405339856,1771013440408,-1500.0,0.00034795,2]
[405339857,1771013440417,-194.43,0.000351,14]
[405339858,1771013440426,-3000.38753315,0.0003521,2]
[405339859,1771013440435,-152.0,0.00035375,7]
[405339860,1771013440444,-522.0,0.00035636,17]
[405339861,1771013440454,-137311.6,0.000357,14]
[405339862,1771013440463,-1827.83673671,0.00035818,2]
[405339863,1771013440474,-400.73548,0.00035888,30]
[405339864,1771013440483,-2000.0,0.000359,2]
[405339865,1771013440494,-283.8,0.000359,14]
[405339866,1771013440503,-1000.0,0.000359,2]
[405339867,1771013440512,-300.140409,0.00035918,76]
[405339868,1771013440522,-400.73548,0.00036088,30]
[405339869,1771013440532,-1614.55677776,0.00036133,9]
[405339870,1771013440542,-617.0,0.00036185,2]
[405339871,1771013440551,-1337.0,0.00036185,2]
[405339872,1771013440564,-3488.0,0.00036185,2]
[405339873,1771013440574,-1288.0,0.00036185,2]
[405339874,1771013440584,-2450.0,0.00036185,2]
[405339875,1771013440593,-523.742,0.00036185,2]
[405339876,1771013440604,-400.73548,0.00036288,30]
[405339877,1771013440614,-150.0,0.0003643,2]
[405339878,1771013440624,-400.73548,0.00036488,30]
[405339879,1771013440633,-152.0,0.0003656,8]
[405339880,1771013440644,-400.73548,0.00036688,30]
[405339881,1771013440653,-194.43,0.000367,14]
[405339882,1771013440663,-1813.63029813,0.00036794,2]
[405339883,1771013440674,-1335.7849,0.00036888,7]
[405339884,1771013440683,-400.73548,0.00036888,30]
[405339885,1771013440693,-400.73548,0.00037088,30]
[405339886,1771013440703,-137311.6,0.000371,14]
[405339887,1771013440712,-13465.44036426,0.00037274,2]
[405339888,1771013440722,-18520.31911355,0.00037274,2]
[405339889,1771013440730,-400.73548,0.00037288,30]
[405339890,1771013440739,-1058.716,0.00037339,48]
[405339891,1771013440749,-400.73548,0.00037488,30]
[405339892,1771013440758,-400.73548,0.00037688,30]
[405339893,1771013440767,-152.0,0.00037746,9]
[405339894,1771013440776,-10000.0,0.00037856,2]
[405339895,1771013440786,-2900.21310682,0.00037856,2]
[405339896,1771013440795,-1153.93738374,0.00037856,2]
[405339897,1771013440805,-5540.37495166,0.00037856,2]
[405339898,1771013440814,-192.73718597,0.00037856,2]
[405339899,1771013440823,-3403.1563373,0.00037856,2]
[405339900,1771013440832,-400.73548,0.00037888,30]
[405339901,1771013440842,-151.0,0.00037953,14]
[405339902,1771013440851,-500.0,0.00037955,120]
[405339903,1771013440860,-500.0,0.00037955,120]
[405339904,1771013440870,-500.0,0.00037955,120]
[405339905,1771013440879,-500.0,0.00037955,120]
[405339906,1771013440888,-500.0,0.00037955,120]
[405339907,1771013440898,-500.0,0.00037955,120]
[405339908,1771013440907,-230.81799986,0.00037955,120]
[405339909,1771013440916,-661.47,0.00037955,2]
[405339910,1771013440925,-661.47,0.00037955,2]
[405339911,1771013440934,-661.47,0.00037955,2]
[405339912,1771013440943,-661.47,0.00037955,2]
[405339913,1771013440952,-661.47,0.00037955,2]
[405339914,1771013440962,-661.47,0.00037955,2]
[405339915,1771013440971,-500.0,0.00037955,120]
[405339916,1771013440981,-500.0,0.00037955,120]
[405339917,1771013440991,-500.0,0.00037955,120]
[405339918,1771013441000,-500.0,0.00037955,120]
[405339919,1771013441010,-500.0,0.00037955,120]
[405339920,1771013441019,-529.73506278,0.00037955,120]
[405339921,1771013441028,-505.994553,0.00037955,120]
[405339922,1771013441038,-530.26100019,0.00037955,18]
[405339923,1771013441048,-361200.2606203,0.00037956,2]
[405339924,1771013441057,-18523.9382041,0.00037956,2]
[405339925,1771013441067,-1083600.7818604,0.00037956,2]
[405339926,1771013441076,-6174.646068,0.00037956,2]
[405339927,1771013441085,-500.0,0.00037999,120]
[405339928,1771013441095,-661.47,0.00037999,2]
[405339929,1771013441104,-400.73548,0.00038088,30]
[405339930,1771013441113,-150.0,0.00038252,2]
[405339931,1771013441123,-400.73548,0.00038288,30]
[405339932,1771013441132,-137311.6,0.000383,14]
[405339933,1771013441141,-1999.0,0.00038356,120]
[405339934,1771013441151,-400.73548,0.00038488,30]
[405339935,1771013441160,-384.0,0.0003857,2]
[405339936,1771013441169,-384.0,0.0003857,2]
[405339937,1771013441178,-384.0,0.0003857,2]
[405339938,1771013441188,-384.0,0.0003857,2]
[405339939,1771013441197,-384.0,0.0003857,2]
[405339940,1771013441206,-384.0,0.0003857,2]
[405339941,1771013441215,-177.24429192,0.0003857,2]
[405339942,1771013441224,-384.0,0.0003857,2]
[405339943,1771013441234,-384.0,0.0003857,2]
[405339944,1771013441243,-384.0,0.0003857,2]
[405339945,1771013441252,-384.0,0.0003857,2]
[405339946,1771013441261,-482.65442763,0.0003857,2]
[405339947,1771013441271,-384.0,0.0003857,2]
[405339948,1771013441280,-400.73548,0.00038688,30]
[405339949,1771013441290,-152.0,0.00038931,10]
[405339950,1771013441299,-3403.1563373,0.00038932,2]
[405339951,1771013441309,-433.62513548,0.00039,6]
[405339952,1771013441319,-1327.05158,0.00039,120]
[405339953,1771013441328,-1999.0,0.00039041,120]
[405339954,1771013441338,-400.73548,0.00039088,30]
[405339955,1771013441348,-283.8,0.000391,14]
[405339956,1771013441358,-617.0,0.00039185,2]
[405339957,1771013441367,-1337.0,0.00039185,2]
[405339958,1771013441376,-3488.0,0.00039185,2]
[405339959,1771013441386,-2450.0,0.00039185,2]
[405339960,1771013441396,-1813.63029813,0.00039192,2]
[405339961,1771013441405,-1327.05158,0.000392,120]
[405339962,1771013441415,-400.73548,0.00039288,30]
[405339963,1771013441425,-675.18,0.000394,14]
[405339964,1771013441435,-1327.05158,0.000394,120]
[405339965,1771013441445,-3000.38753315,0.00039473,2]
[405339966,1771013441455,-400.73548,0.00039488,30]
[405339967,1771013441466,-137311.6,0.000395,14]
[405339968,1771013441478,-25000.0,0.00039547,15]
[405339969,1771013441488,-25000.0,0.00039556,15]
[405339970,1771013441498,-25000.0,0.00039565,15]
[405339971,1771013441508,-25000.0,0.00039574,15]
[405339972,1771013441518,-25000.0,0.00039582,15]
[405339973,1771013441527,-25000.0,0.00039591,15]
[405339974,1771013441537,-2000.0,0.000396,2]
[405339975,1771013441547,-25000.0,0.000396,15]
[405339976,1771013441559,-1000.0,0.000396,2]
[405339977,1771013441568,-1327.05158,0.000396,120]
[405339978,1771013441578,-25000.0,0.000396,15]
[405339979,1771013441589,-434.74511203,0.00039609,120]
[405339980,1771013441600,-661.47,0.00039609,2]
[405339981,1771013441610,-130248.05828477,0.0003961,2]
[405339982,1771013441620,-1558.68796301,0.00039672,2]
[405339983,1771013441630,-371.94213864,0.00039672,2]
[405339984,1771013441640,-301.02860324,0.00039672,2]
[405339985,1771013441651,-300.0,0.00039672,2]
[405339986,1771013441660,-300.0,0.00039672,2]
[405339987,1771013441670,-300.52729027,0.00039672,2]
[405339988,1771013441679,-300.0,0.00039672,2]
[405339989,1771013441690,-300.0,0.00039672,2]
[405339990,1771013441699,-301.20809281,0.00039672,2]
[405339991,1771013441709,-572.79598072,0.00039672,2]
[405339992,1771013441718,-553.40092275,0.00039672,2]
[405339993,1771013441728,-1083.69896901,0.00039672,2]
[405339994,1771013441737,-1558.68796301,0.00039672,2]
[405339995,1771013441747,-300.70116688,0.00039672,2]
[405339996,1771013441757,-300.0,0.00039672,2]
[405339997,1771013441767,-300.51467445,0.00039672,2]
[405339998,1771013441777,-575.91635491,0.00039672,2]
[405339999,1771013441786,-400.73548,0.00039688,30]
[405340000,1771013441796,-1999.0,0.00039726,120]
[405340001,1771013441806,-13651.53574804,0.00039781,7]
[405340002,1771013441822,-588.17047056,0.00039781,7]
[405340003,1771013441833,-1342.15912563,0.00039781,7]
[405340004,1771013441856,-296.53689903,0.00039781,7]
[405340005,1771013441872,-1695.30567479,0.00039781,7]
[405340006,1771013441985,-12952.0,0.00039781,7]
[405340007,1771013441996,-1169.5132345,0.00039781,7]
[405340008,1771013442015,-512.27802841,0.00039781,7]
[405340009,1771013442034,-48256.65660508,0.00039781,7]
[405340010,1771013442043,-5800.0,0.00039791,14]
[405340011,1771013442052,-5800.0,0.000398,14]
[405340012,1771013442061,-1327.05158,0.000398,120]
[405340013,1771013442070,-5800.0,0.00039808,14]
[405340014,1771013442079,-5800.0,0.00039817,14]
[405340015,1771013442088,-5800.0,0.00039825,14]
[405340016,1771013442097,-5800.0,0.00039834,14]
[405340017,1771013442107,-5800.0,0.00039842,14]
[405340018,1771013442117,-400.73548,0.00039888,30]
[405340019,1771013442126,-661.47,0.00039999,2]
[405340020,1771013442135,-661.47,0.00039999,2]
[405340021,1771013442144,-661.47,0.00039999,2]
[405340022,1771013442154,-500.0,0.00039999,31]
[405340023,1771013442162,-468.66102111,0.00039999,31]
[405340024,1771013442171,-500.0,0.00039999,30]
[405340025,1771013442180,-151.0,0.00039999,30]
[405340026,1771013442190,-319.81860427,0.00039999,30]
[405340027,1771013442199,-500.0,0.00039999,30]
[405340028,1771013442208,-151.0,0.00039999,30]